bitfinex/quotes_BTCUSD_20250917
["timestamp","ask_amount","ask_price","bid_price","bid_amount"]
[1758143570742,1e-08,115650.0,115640.0,1.69592597]
[1758143571013,1e-08,115650.0,115640.0,2.94063077]
[1758143572993,0.0004,115670.0,115650.0,0.05]
[1758143573280,0.0004,115680.0,115670.0,0.61795917]
[1758143573489,0.0004,115680.0,115670.0,0.98143884]
[1758143573753,0.0004,115680.0,115670.0,1.0074069]
[1758143573934,0.0004,115680.0,115670.0,1.4074069]
[1758143574364,0.0004,115680.0,115670.0,1.0088169]
[1758143574523,0.0004,115680.0,115670.0,1.06662914]
[1758143574735,0.0004,115680.0,115670.0,1.46521914]
[1758143574905,0.0004,115680.0,115670.0,1.46491914]
[1758143575123,0.0004,115680.0,115670.0,1.05001754]
[1758143575338,0.0004,115680.0,115670.0,1.46491914]
[1758143575755,0.0004,115680.0,115670.0,1.46632914]
[1758143575956,0.0004,115680.0,115670.0,1.46491914]
[1758143577483,0.0004,115680.0,115670.0,1.47345602]
[1758143577784,0.0004,115680.0,115670.0,1.47486602]
[1758143578609,0.0004,115680.0,115670.0,1.53849239]
[1758143579663,0.0004,115680.0,115670.0,1.12218079]
[1758143579894,0.0004,115680.0,115670.0,1.53708239]
[1758143580570,0.0004,115680.0,115670.0,1.12218079]
[1758143580796,0.0004,115680.0,115670.0,1.53708239]
[1758143581426,0.0004,115680.0,115670.0,1.53849239]
[1758143581645,0.0004,115680.0,115670.0,1.12359079]
[1758143581859,0.0004,115680.0,115670.0,1.53667696]
[1758143582477,0.0004,115680.0,115670.0,1.53808696]
[1758143583095,0.0004,115680.0,115670.0,1.53667696]
[1758143583304,0.0004,115680.0,115670.0,1.53808696]
[1758143584411,0.0004,115680.0,115670.0,1.87848696]
[1758143585736,0.0004,115680.0,115670.0,1.46359079]
[1758143586004,0.0004,115680.0,115670.0,1.87848696]
[1758143587515,0.0004,115680.0,115670.0,1.46399079]
[1758143587648,0.0004,115680.0,115670.0,1.87848696]
[1758143589999,0.0004,115680.0,115670.0,1.46399079]
[1758143590678,0.0004,115680.0,115670.0,1.87848696]
[1758143591758,0.0004,115680.0,115670.0,1.46258079]
[1758143591975,0.0004,115680.0,115670.0,1.87948696]
[1758143592175,0.0004,115680.0,115670.0,1.46499079]
[1758143592384,0.0004,115680.0,115670.0,1.87948696]
[1758143594632,0.0004,115680.0,115670.0,1.46499079]
[1758143594985,0.0004,115680.0,115670.0,1.87948696]
[1758143599119,0.0004,115680.0,115670.0,1.46358079]
[1758143599327,0.0004,115680.0,115670.0,1.87948696]
[1758143599973,0.0004,115680.0,115670.0,1.46499079]
[1758143600180,0.0004,115680.0,115670.0,1.87948696]
[1758143604866,0.39286617,115710.0,115700.0,0.17286084]
[1758143605086,0.39891504,115710.0,115700.0,0.46718692]
[1758143605293,0.40096504,115710.0,115700.0,0.46718692]
[1758143605703,0.00819887,115710.0,115700.0,0.49315306]
[1758143605912,0.42269504,115710.0,115700.0,0.49315306]
[1758143606125,0.42469504,115710.0,115700.0,0.49315306]
[1758143606559,0.01019887,115710.0,115700.0,0.49315306]
[1758143606983,0.03726887,115710.0,115700.0,0.49325306]
[1758143608272,0.03122,115710.0,115700.0,0.49325306]
[1758143608949,0.03112,115710.0,115700.0,0.49528306]
[1758143609157,0.02794,115710.0,115700.0,0.49528306]
[1758143609359,0.02794,115710.0,115700.0,0.52543496]
[1758143609802,0.03112,115710.0,115700.0,0.52543496]
[1758143610876,0.02794,115710.0,115700.0,0.52543496]
[1758143611323,0.03112,115710.0,115700.0,0.52543496]
[1758143613434,0.03112,115710.0,115700.0,0.52340496]
[1758143613926,0.03112,115710.0,115700.0,0.58685268]
[1758143614147,0.03112,115710.0,115700.0,0.58883268]
[1758143615568,0.03112,115710.0,115700.0,0.58685268]
[1758143616050,0.02802,115710.0,115700.0,0.58883268]
[1758143616257,0.0312,115710.0,115700.0,0.58685268]
[1758143616412,0.0312,115710.0,115700.0,0.58641268]
[1758143616828,0.0292,115710.0,115700.0,0.58641268]
[1758143617194,0.0302,115710.0,115700.0,0.58641268]
[1758143618925,0.0302,115710.0,115700.0,0.58839268]
[1758143618926,0.00631,115710.0,115700.0,0.58839268]
[1758143619069,0.02899,115710.0,115700.0,0.58839268]
[1758143623650,0.02581,115710.0,115700.0,0.58839268]
[1758143624548,0.02899,115710.0,115700.0,0.58839268]
[1758143625187,0.02899,115710.0,115700.0,0.30981268]
[1758143625420,0.02899,115710.0,115700.0,0.58633268]
[1758143640387,0.001,115710.0,115700.0,1.09121852]
[1758143640632,0.001,115710.0,115700.0,1.45490852]
[1758143640843,1e-08,115710.0,115700.0,1.91940469]
[1758143641679,0.0001,115720.0,115710.0,0.5929978]
[1758143641810,0.0001,115720.0,115710.0,1.61925948]
[1758143642029,0.0001,115720.0,115710.0,1.62133948]
[1758143642233,0.0001,115730.0,115720.0,0.51283097]
[1758143642516,0.0005,115740.0,115730.0,0.59296793]
[1758143642700,0.0005,115740.0,115730.0,1.53671994]
[1758143642936,0.00097083,115740.0,115730.0,1.62198961]
[1758143643158,0.00087083,115740.0,115730.0,1.62198961]
[1758143643802,0.00087083,115740.0,115730.0,1.62085527]
[1758143644515,0.00087083,115740.0,115730.0,0.79299727]
[1758143644722,0.00087083,115740.0,115730.0,1.73174118]
[1758143645139,0.00087083,115740.0,115730.0,1.62085527]
[1758143645513,0.00087083,115740.0,115730.0,1.62485527]
[1758143645936,1e-08,115740.0,115730.0,2.21281335]
[1758143646164,1e-08,115740.0,115730.0,2.61281335]
[1758143646367,1e-08,115740.0,115730.0,2.50392744]
[1758143646874,1e-08,115740.0,115730.0,2.49992744]
[1758143647101,1e-08,115740.0,115730.0,2.60881335]
[1758143647574,1e-08,115740.0,115730.0,2.49992744]
[1758143648216,1e-08,115740.0,115730.0,2.50392744]
[1758143648450,1e-08,115750.0,115740.0,0.252953]
[1758143648670,0.0004,115770.0,115760.0,0.25292315]
[1758143648887,0.0004,115770.0,115760.0,1.87692082]
[1758143649106,0.0004,115770.0,115760.0,2.27692082]
[1758143649398,0.0004,115770.0,115760.0,2.30442082]
[1758143649643,1e-08,115770.0,115760.0,2.76158089]
[1758143649860,1e-08,115770.0,115760.0,2.76258089]
[1758143650304,1e-08,115770.0,115760.0,2.82126799]
[1758143650525,1e-08,115770.0,115760.0,4.12899164]
[1758143651380,1e-08,115770.0,115760.0,4.12799164]
[1758143651616,1e-08,115770.0,115760.0,4.12999164]
[1758143651895,1e-08,115770.0,115760.0,4.12799164]
[1758143653016,1e-08,115770.0,115760.0,4.12809164]
[1758143656282,1e-08,115790.0,115780.0,0.2528933]
[1758143656514,0.00014115,115790.0,115780.0,1.9391936]
[1758143656720,0.00014115,115790.0,115780.0,1.9686836]
[1758143657156,0.00014115,115790.0,115780.0,2.3687836]
[1758143657602,0.00014115,115790.0,115780.0,2.37224219]
[1758143657776,0.00014115,115790.0,115780.0,2.37424219]
[1758143658765,1e-08,115790.0,115780.0,2.38274219]
[1758143659411,1e-08,115790.0,115780.0,2.72274219]
[1758143660275,1e-08,115790.0,115780.0,1.48095519]
[1758143660487,1e-08,115790.0,115780.0,2.72274219]
[1758143661112,1e-08,115790.0,115780.0,3.96452919]
[1758143661331,1e-08,115790.0,115780.0,2.72274219]
[1758143665517,1e-08,115790.0,115780.0,2.71424219]
[1758143665723,1e-08,115790.0,115780.0,3.96452919]
[1758143665917,1e-08,115790.0,115780.0,4.22802919]
[1758143666732,1e-08,115800.0,115790.0,0.25287838]
[1758143666954,1e-08,115800.0,115790.0,2.43710472]
[1758143667157,1e-08,115800.0,115790.0,2.43919472]
[1758143667377,1e-08,115800.0,115790.0,2.83919472]
[1758143667908,1e-08,115800.0,115790.0,2.84019472]
[1758143669190,1e-08,115800.0,115790.0,1.59840772]
[1758143669407,1e-08,115800.0,115790.0,2.42626572]
[1758143671128,1e-08,115800.0,115790.0,2.49108349]
[1758143672469,1e-08,115800.0,115790.0,2.90501249]
[1758143672951,1e-08,115810.0,115800.0,1.83465047]
[1758143673165,1e-08,115810.0,115800.0,2.27607135]
[1758143673382,1e-08,115810.0,115800.0,1.47548335]
[1758143673608,0.0004,115820.0,115810.0,0.51269665]
[1758143673823,0.0004,115820.0,115810.0,0.90319632]
[1758143674028,0.0004,115820.0,115810.0,0.91391632]
[1758143674238,0.0002,115830.0,115820.0,0.54283364]
[1758143674455,0.00034111,115830.0,115820.0,2.25455131]
[1758143674668,0.00034111,115830.0,115820.0,2.25667131]
[1758143675149,0.00034111,115830.0,115820.0,2.25677131]
[1758143675577,0.00034111,115830.0,115820.0,2.32186386]
[1758143675796,0.00034111,115830.0,115820.0,2.40342749]
[1758143677118,0.00034111,115830.0,115820.0,2.81735649]
[1758143679737,0.00034111,115830.0,115820.0,2.82181431]
[1758143680620,0.00034111,115830.0,115820.0,2.40788531]
[1758143680838,0.00034111,115830.0,115820.0,2.78104531]
[1758143682332,0.00034111,115830.0,115820.0,3.19497431]
[1758143683063,1e-08,115830.0,115820.0,3.19497431]
[1758143683267,1e-08,115830.0,115820.0,3.24497431]
[1758143686075,1e-08,115830.0,115820.0,3.24397431]
[1758143686731,1e-08,115830.0,115820.0,3.24597431]
[1758143688875,0.0005,115870.0,115820.0,2.82168431]
[1758143689105,0.0005,115870.0,115860.0,1.83456103]
[1758143689106,0.00691446,115870.0,115860.0,1.83456103]
[1758143689329,0.00691446,115870.0,115860.0,2.74914037]
[1758143689330,1e-08,115870.0,115860.0,2.74914037]
[1758143689549,1e-08,115870.0,115860.0,3.15126037]
[1758143689735,1e-08,115870.0,115860.0,3.20445279]
[1758143690298,1e-08,115870.0,115860.0,3.2702807]
[1758143690707,1e-08,115870.0,115860.0,2.0284937]
[1758143690912,1e-08,115870.0,115860.0,2.9926807]
[1758143691153,1e-08,115870.0,115860.0,3.2702007]
[1758143691309,1e-08,115870.0,115860.0,3.2712007]
[1758143691952,0.00522001,115870.0,115860.0,1.9500237]
[1758143692156,0.02553001,115870.0,115860.0,2.7799617]
[1758143692366,1e-08,115870.0,115860.0,3.2298753]
[1758143693602,1e-08,115870.0,115860.0,3.2299753]
[1758143695012,1e-08,115870.0,115860.0,3.2799753]
[1758143697130,1e-08,115870.0,115860.0,1.7364183]
[1758143697328,1e-08,115870.0,115860.0,3.2796553]
[1758143698218,1e-08,115870.0,115860.0,2.0378683]
[1758143698429,1e-08,115870.0,115860.0,3.2796553]
[1758143699253,1e-08,115870.0,115860.0,2.8657263]
[1758143699830,1e-08,115870.0,115860.0,3.2796553]
[1758143700235,1e-08,115870.0,115860.0,2.0378683]
[1758143700488,1e-08,115870.0,115860.0,2.8657263]
[1758143700715,1e-08,115870.0,115860.0,2.5885663]
[1758143700938,1e-08,115870.0,115860.0,2.8655663]
[1758143703880,1e-08,115870.0,115860.0,3.2794953]
[1758143705378,1e-08,115870.0,115860.0,2.0377083]
[1758143705604,1e-08,115870.0,115860.0,3.2790953]
[1758143705851,0.02813001,115870.0,115860.0,1.25604863]
[1758143706065,0.02813001,115870.0,115860.0,0.94207246]
[1758143706285,0.02813001,115870.0,115860.0,0.91615004]
[1758143706801,0.02813001,115870.0,115860.0,0.91515004]
[1758143706938,0.02813001,115870.0,115860.0,0.51515004]
[1758143707170,0.20073724,115870.0,115860.0,0.17272213]
[1758143707373,0.02813001,115870.0,115860.0,0.17272213]
[1758143708219,0.20073724,115870.0,115860.0,0.17272213]
[1758143708673,0.44135332,115870.0,115860.0,0.0001]
[1758143708859,0.44135332,115870.0,115860.0,0.17272213]
[1758143709088,0.02813001,115870.0,115860.0,0.17272213]
[1758143710029,0.02813001,115870.0,115860.0,0.24125855]
[1758143710918,0.02813001,115870.0,115860.0,0.17272213]
[1758143711680,0.02813001,115870.0,115860.0,0.70136701]
[1758143713557,0.00524001,115870.0,115860.0,0.70136701]
[1758143714259,0.00211001,115870.0,115860.0,0.70352701]
[1758143714423,1e-08,115870.0,115860.0,1.14325032]
[1758143714676,1e-08,115870.0,115860.0,1.56851999]
[1758143716194,1e-08,115870.0,115860.0,1.99444366]
[1758143716883,1e-08,115870.0,115860.0,1.16799704]
[1758143717106,1e-08,115870.0,115860.0,1.97089366]
[1758143717654,1e-08,115870.0,115860.0,1.55767035]
[1758143718269,1e-08,115870.0,115860.0,1.14149704]
[1758143718517,1e-08,115870.0,115860.0,1.55767035]
[1758143718743,1e-08,115870.0,115860.0,1.99444366]
[1758143720049,1e-08,115870.0,115860.0,1.99544366]
[1758143726050,1e-08,115870.0,115860.0,1.16899704]
[1758143726277,1e-08,115870.0,115860.0,1.99544366]
[1758143726711,1e-08,115870.0,115860.0,2.27204366]
[1758143728834,1e-08,115870.0,115860.0,2.64504366]
[1758143730741,1e-08,115870.0,115860.0,2.69504366]
[1758143731099,1e-08,115870.0,115860.0,2.95854366]
[1758143737375,0.0004,115890.0,115880.0,0.20274423]
[1758143737585,0.00052193,115890.0,115880.0,1.09567163]
[1758143737979,0.00052193,115890.0,115880.0,1.49567163]
[1758143738215,0.00052193,115890.0,115880.0,1.5215901]
[1758143738371,0.00052193,115890.0,115880.0,1.5216901]
[1758143739701,0.00052193,115890.0,115880.0,1.5496501]
[1758143741556,0.00052193,115890.0,115880.0,1.13642679]
[1758143741759,0.00052193,115890.0,115880.0,1.5496501]
[1758143742145,0.00052193,115890.0,115880.0,1.61297335]
[1758143742724,0.00052193,115890.0,115880.0,1.59003335]
[1758143744273,0.00052193,115890.0,115880.0,1.58959335]
[1758143744686,0.00052193,115890.0,115880.0,1.17637004]
[1758143744924,0.00052193,115890.0,115880.0,1.58959335]
[1758143745900,9.264e-05,115890.0,115880.0,1.58959335]
[1758143746304,9.264e-05,115890.0,115880.0,1.61253335]
[1758143746501,9.264e-05,115890.0,115880.0,1.17637004]
[1758143746707,9.264e-05,115890.0,115880.0,1.58959335]
[1758143748191,0.00210264,115890.0,115880.0,0.89789004]
[1758143748413,0.02872264,115890.0,115880.0,1.58643335]
[1758143748637,0.00210264,115890.0,115880.0,1.58643335]
[1758143751526,0.00210264,115890.0,115880.0,1.58943335]
[1758143751527,9.264e-05,115890.0,115880.0,1.58943335]
[1758143752604,9.264e-05,115890.0,115880.0,1.17621004]
[1758143752817,9.264e-05,115890.0,115880.0,1.58943335]
[1758143753261,9.264e-05,115890.0,115880.0,1.61237335]
[1758143753948,9.264e-05,115890.0,115880.0,1.58943335]
[1758143754183,9.264e-05,115890.0,115880.0,1.95237335]
[1758143756688,9.264e-05,115890.0,115880.0,1.92943335]
[1758143758106,9.264e-05,115890.0,115880.0,1.95237335]
[1758143762254,9.264e-05,115890.0,115880.0,1.92943335]
[1758143763112,9.264e-05,115890.0,115880.0,1.95372335]
[1758143765826,9.264e-05,115890.0,115880.0,2.73929234]
[1758143766461,9.264e-05,115890.0,115880.0,2.84817825]
[1758143775836,9.264e-05,115890.0,115880.0,2.84917825]
[1758143776439,9.264e-05,115890.0,115880.0,3.3120944]
[1758143777471,1e-08,115890.0,115880.0,3.3120944]
[1758143789895,1e-08,115890.0,115880.0,3.3620944]
[1758143790767,0.02285601,115920.0,115910.0,0.17254766]
[1758143791046,0.02285601,115920.0,115910.0,0.97998315]
[1758143791292,0.02800601,115920.0,115910.0,0.97998315]
[1758143791495,0.02800601,115920.0,115910.0,1.37998315]
[1758143792034,0.02800601,115920.0,115910.0,1.40283916]
[1758143792284,0.02800601,115920.0,115910.0,1.41159761]
[1758143793492,0.02874601,115920.0,115910.0,1.41360761]
[1758143794113,0.02874601,115920.0,115910.0,1.47684326]
[1758143794365,0.00016601,115920.0,115910.0,1.89268941]
[1758143794778,0.00016601,115920.0,115910.0,1.08961711]
[1758143794989,0.00016601,115920.0,115910.0,1.91544941]
[1758143795951,0.00016601,115920.0,115910.0,1.50253326]
[1758143796204,0.00016601,115920.0,115910.0,1.47977326]
[1758143797301,0.00016601,115920.0,115910.0,1.89268941]
[1758143797734,0.00016601,115920.0,115910.0,1.91544941]
[1758143799928,0.00016601,115920.0,115910.0,1.94560131]
[1758143801227,0.00016601,115920.0,115910.0,1.11976901]
[1758143801433,0.00016601,115920.0,115910.0,1.94560131]
[1758143802989,0.00016601,115920.0,115910.0,1.11976901]
[1758143803229,0.00016601,115920.0,115910.0,1.94560131]
[1758143803699,0.00016601,115920.0,115910.0,2.33560131]
[1758143807459,0.00016601,115920.0,115910.0,1.50976901]
[1758143807681,0.00016601,115920.0,115910.0,2.33560131]
[1758143808464,0.00016601,115920.0,115910.0,2.59910131]
[1758143810639,0.00016601,115920.0,115910.0,2.57140131]
[1758143810865,0.00016601,115920.0,115910.0,2.57341131]
[1758143811089,0.00016601,115920.0,115910.0,2.57634131]
[1758143812664,0.00016601,115920.0,115910.0,2.59910131]
[1758143815501,0.00016601,115920.0,115910.0,1.77326901]
[1758143815722,0.00016601,115920.0,115910.0,2.59910131]
[1758143816207,0.00514601,115920.0,115910.0,1.48178901]
[1758143816425,0.02857601,115920.0,115910.0,1.40163711]
[1758143816634,0.44149216,115920.0,115910.0,0.62953179]
[1758143816851,0.02857601,115920.0,115910.0,0.90385179]
[1758143817068,0.02857601,115920.0,115910.0,0.93400369]
[1758143820225,0.02857601,115920.0,115910.0,1.33400369]
[1758143821115,0.02857601,115920.0,115910.0,0.99400369]
[1758143821342,0.02857601,115920.0,115910.0,1.07927336]
[1758143823394,0.44149216,115920.0,115910.0,0.96385179]
[1758143823860,0.61402494,115920.0,115910.0,0.20426212]
[1758143824106,1.02694109,115920.0,115910.0,0.02295601]
[1758143824332,1.02694109,115920.0,115910.0,0.0001]
[1758143825455,1.02694109,115920.0,115910.0,0.17264766]
[1758143825955,0.6140924,115920.0,115910.0,0.17264766]
[1758143826409,0.44155962,115920.0,115910.0,0.17264766]
[1758143826613,0.6140924,115920.0,115910.0,0.17264766]
[1758143827480,0.20110879,115920.0,115910.0,0.17264766]
[1758143827668,0.44155962,115920.0,115910.0,0.17264766]
[1758143827894,0.6140924,115920.0,115910.0,0.19856712]
[1758143831102,0.20110879,115920.0,115910.0,0.19856712]
[1758143831317,0.02867601,115920.0,115910.0,0.19856712]
[1758143831527,0.6141924,115920.0,115910.0,0.19856712]
[1758143834324,1.11244568,115920.0,115910.0,0.02601946]
[1758143834584,1.54564568,115920.0,115910.0,0.0001]
[1758143835037,1.59564568,115920.0,115910.0,0.0001]
[1758143835341,0.17254766,115910.0,115900.0,0.0001]
[1758143835561,1.36419183,115910.0,115900.0,1e-08]
[1758143835789,1.38624455,115910.0,115900.0,1e-08]
[1758143836222,1.45126714,115910.0,115900.0,1e-08]
[1758143836658,1.45136714,115910.0,115900.0,1e-08]
[1758143837502,1.45740657,115910.0,115900.0,1e-08]
[1758143838379,1.46086379,115910.0,115900.0,1e-08]
[1758143838783,0.51256255,115900.0,115890.0,0.0001]
[1758143838994,1.42983887,115900.0,115890.0,0.0001]
[1758143839236,0.17257744,115890.0,115880.0,0.0001]
[1758143839448,1.36425376,115890.0,115880.0,0.0001]
[1758143839655,1.39235376,115890.0,115880.0,0.0001]
[1758143839872,1.82559376,115890.0,115880.0,0.0001]
[1758143840316,1.82569376,115890.0,115880.0,0.0001]
[1758143841420,0.17259233,115880.0,115870.0,0.06831573]
[1758143841631,0.69894561,115880.0,115870.0,0.06843766]
[1758143842191,0.69894561,115880.0,115870.0,0.00022193]
[1758143842396,0.70507266,115880.0,115870.0,0.00022193]
[1758143842596,0.70607266,115880.0,115870.0,0.00022193]
[1758143843016,0.29308905,115880.0,115870.0,0.00022193]
[1758143843221,0.70607266,115880.0,115870.0,0.00022193]
[1758143848475,0.72213384,115880.0,115870.0,0.00022193]
[1758143848910,1.06213384,115880.0,115870.0,0.00022193]
[1758143849555,1.06213384,115880.0,115870.0,0.00012193]
[1758143850971,0.32472823,115880.0,115870.0,0.17272916]
[1758143851180,0.31066705,115880.0,115870.0,0.17272916]
[1758143851427,0.30866705,115880.0,115870.0,0.17272916]
[1758143851635,0.72165066,115880.0,115870.0,0.17272916]
[1758143851817,0.72465066,115880.0,115870.0,0.17272916]
[1758143852041,0.72165066,115880.0,115870.0,0.17272916]
[1758143852249,0.73971919,115880.0,115870.0,0.17272916]
[1758143852459,0.73971919,115880.0,115870.0,0.17282916]
[1758143852927,0.73971974,115880.0,115870.0,0.17282916]
[1758143853576,0.32673613,115880.0,115870.0,0.17282916]
[1758143853789,0.73971974,115880.0,115870.0,0.17282916]
[1758143854560,0.32673613,115880.0,115870.0,0.17282916]
[1758143854709,0.73971974,115880.0,115870.0,0.17282916]
[1758143856338,0.91231207,115880.0,115870.0,0.17282916]
[1758143856540,0.73971974,115880.0,115870.0,0.17282916]
[1758143856992,0.73972309,115880.0,115870.0,0.17282916]
[1758143858439,0.32673948,115880.0,115870.0,0.17282916]
[1758143858590,0.73972309,115880.0,115870.0,0.17282916]
[1758143864348,0.32673948,115880.0,115870.0,0.17282916]
[1758143864573,0.73972309,115880.0,115870.0,0.17282916]
[1758143864812,0.32673948,115880.0,115870.0,0.17282916]
[1758143865909,0.32669948,115880.0,115870.0,0.17282916]
[1758143866160,0.73968309,115880.0,115870.0,0.17282916]
[1758143866364,0.46528309,115880.0,115870.0,0.17282916]
[1758143866569,0.73968309,115880.0,115870.0,0.17282916]
[1758143866999,0.73768309,115880.0,115870.0,0.17282916]
[1758143867442,0.73968309,115880.0,115870.0,0.17282916]
[1758143867693,0.73768309,115880.0,115870.0,0.17282916]
[1758143867906,0.73868309,115880.0,115870.0,0.17282916]
[1758143869026,0.32579566,115880.0,115870.0,0.17282916]
[1758143869662,0.41106533,115880.0,115870.0,0.00022193]
[1758143869908,0.17260723,115870.0,115860.0,0.02602959]
[1758143870122,0.69622706,115870.0,115860.0,0.02592959]
[1758143870331,0.69622706,115870.0,115850.0,0.1]
[1758143870332,0.51262213,115860.0,115850.0,0.1]
[1758143870547,1.30743107,115860.0,115850.0,0.1]
[1758143870763,1.33631107,115860.0,115850.0,0.1]
[1758143870991,1.33641107,115860.0,115850.0,0.1]
[1758143871432,1.33513554,115860.0,115850.0,0.1]
[1758143871642,1.34367541,115860.0,115850.0,0.1]
[1758143871855,1.33513554,115860.0,115850.0,0.1]
[1758143872066,1.84235915,115860.0,115850.0,0.1]
[1758143873392,1.84135915,115860.0,115850.0,0.1]
[1758143874101,1.83532875,115860.0,115850.0,0.1]
[1758143874321,1.84138069,115860.0,115850.0,0.1]
[1758143874538,1.85018668,115860.0,115850.0,0.1]
[1758143874744,1.85118668,115860.0,115850.0,0.1]
[1758143874929,1.88133858,115860.0,115850.0,0.1]
[1758143876012,1.88133858,115860.0,115850.0,0.09189987]
[1758143876395,1.05437136,115860.0,115850.0,0.09189987]
[1758143876600,1.88033858,115860.0,115850.0,0.09189987]
[1758143876930,0.75185946,115860.0,115850.0,0.09189987]
[1758143877148,1.43724307,115860.0,115850.0,0.09189987]
[1758143877373,1.44024307,115860.0,115850.0,0.09189987]
[1758143878020,1.16584307,115860.0,115850.0,0.09189987]
[1758143878244,1.44024307,115860.0,115850.0,0.09189987]
[1758143879043,1.16584307,115860.0,115850.0,0.09189987]
[1758143879217,1.44024307,115860.0,115850.0,0.09189987]
[1758143880115,1.46318209,115860.0,115850.0,0.09189987]
[1758143880299,1.4563761,115860.0,115850.0,0.09189987]
[1758143880855,0.25758163,115860.0,115850.0,0.2645369]
[1758143881039,0.02639294,115860.0,115850.0,0.67965051]
[1758143881307,0.30079294,115860.0,115850.0,0.67965051]
[1758143881554,0.02639294,115860.0,115850.0,0.2666669]
[1758143881793,0.02425294,115860.0,115850.0,0.68271051]
[1758143882032,0.00815194,115860.0,115850.0,0.70664051]
[1758143882717,0.00815194,115860.0,115850.0,0.67965051]
[1758143882933,0.00815194,115860.0,115850.0,0.68266051]
[1758143883596,0.00615194,115860.0,115850.0,0.68266051]
[1758143884029,0.00715194,115860.0,115850.0,0.70637051]
[1758143884270,0.00615194,115860.0,115850.0,0.70637051]
[1758143884718,0.00605194,115860.0,115850.0,0.70637051]
[1758143885006,0.00605194,115860.0,115850.0,0.2933869]
[1758143885200,0.00605194,115860.0,115850.0,0.68276051]
[1758143885409,0.00605194,115860.0,115850.0,0.67975051]
[1758143885624,0.00605194,115860.0,115850.0,0.70668124]
[1758143885836,0.00605194,115860.0,115850.0,0.70969124]
[1758143886275,0.27767089,115870.0,115860.0,0.17262213]
[1758143886499,0.2806413,115870.0,115860.0,0.58861574]
[1758143886712,0.2806413,115870.0,115860.0,0.61425574]
[1758143886926,0.0062813,115870.0,115860.0,0.61425574]
[1758143887358,0.0062813,115870.0,115860.0,0.61435574]
[1758143887801,0.0062813,115870.0,115860.0,1.02772801]
[1758143888016,0.0062813,115870.0,115860.0,0.61455007]
[1758143888241,0.00024089,115870.0,115860.0,0.61455007]
[1758143889153,0.00024089,115870.0,115860.0,0.58793007]
[1758143889363,0.02785089,115870.0,115860.0,0.58590007]
[1758143889578,0.02775089,115870.0,115860.0,0.58590007]
[1758143890217,0.02775089,115870.0,115860.0,0.58793007]
[1758143891498,0.00217089,115870.0,115860.0,0.58793007]
[1758143892501,0.00014089,115870.0,115860.0,0.59094007]
[1758143893137,0.00217089,115870.0,115860.0,0.58793007]
[1758143893539,0.00014089,115870.0,115860.0,0.59094007]
[1758143893783,0.00014089,115870.0,115860.0,1.00411801]
[1758143894590,0.00014089,115870.0,115860.0,0.17776213]
[1758143894915,0.00014089,115870.0,115860.0,0.59094007]
[1758143895591,0.00014089,115870.0,115860.0,0.58793007]
[1758143896243,0.00217089,115870.0,115860.0,0.58793007]
[1758143896718,0.00014089,115870.0,115860.0,0.59094007]
[1758143896942,0.00014089,115870.0,115860.0,0.58793007]
[1758143897157,0.00014089,115870.0,115860.0,0.59094007]
[1758143897588,0.00014089,115870.0,115860.0,1.00411801]
[1758143898297,0.00524089,115870.0,115860.0,0.17475213]
[1758143898535,0.00217089,115870.0,115860.0,0.58793007]
[1758143904577,0.00014089,115870.0,115860.0,0.59094007]
[1758143905321,0.00217089,115870.0,115860.0,0.58793007]
[1758143909557,0.00014089,115870.0,115860.0,0.59094007]
[1758143909759,0.00014089,115870.0,115860.0,0.61455007]
[1758143910180,0.00014089,115870.0,115860.0,0.59094007]
[1758143910642,0.00014089,115870.0,115860.0,0.58793007]
[1758143911250,0.00014089,115870.0,115860.0,0.59094007]
[1758143911459,0.00014089,115870.0,115860.0,1.02772801]
[1758143914271,0.00014089,115870.0,115860.0,1.00411801]
[1758143916231,0.00014089,115870.0,115860.0,1.02828801]
[1758143917411,0.00014089,115870.0,115860.0,1.00411801]
[1758143918812,0.00211089,115870.0,115860.0,0.17475213]
[1758143919018,0.00529089,115870.0,115860.0,0.58793007]
[1758143919229,0.00014089,115870.0,115860.0,0.59110007]
[1758143919495,0.00014089,115870.0,115860.0,1.00427801]
[1758143919739,0.00014089,115870.0,115860.0,0.59110007]
[1758143920360,0.00014089,115870.0,115860.0,1.02844801]
[1758143926040,0.00014089,115870.0,115860.0,1.07624621]
[1758143926651,0.00014089,115870.0,115860.0,0.24989033]
[1758143926916,0.00014089,115870.0,115860.0,1.07624621]
[1758143927056,0.00014089,115870.0,115860.0,1.02844801]
[1758143937614,0.00014089,115870.0,115860.0,1.55704752]
[1758143938195,0.00014089,115870.0,115860.0,1.95704752]
[1758143939008,0.00014089,115870.0,115860.0,1.54386958]
[1758143939225,0.00014089,115870.0,115860.0,2.04231719]
[1758143939427,0.00014089,115870.0,115860.0,2.38231719]
[1758143940249,0.00014089,115870.0,115860.0,2.38331719]
[1758143940592,0.00014089,115870.0,115860.0,2.44865032]
[1758143940792,0.00014089,115870.0,115860.0,2.45065032]
[1758143941088,0.00014089,115870.0,115860.0,2.72465032]
[1758143944355,0.00014089,115870.0,115860.0,3.09769032]
[1758143944706,0.00014089,115870.0,115860.0,3.36119032]
[1758143946436,1e-08,115870.0,115860.0,3.36119032]
[1758143946646,1e-08,115870.0,115860.0,3.09769032]
[1758143947290,1e-08,115870.0,115860.0,3.12361222]
[1758143949901,1e-08,115870.0,115860.0,2.71001808]
[1758143958947,1e-08,115870.0,115860.0,2.70985808]
[1758143959484,1e-08,115870.0,115860.0,2.97335808]
[1758143962136,0.00512001,115870.0,115860.0,1.98140544]
[1758143962334,1e-08,115870.0,115860.0,1.98447544]
[1758143962767,0.00209001,115870.0,115860.0,1.61125354]
[1758143962971,0.00209001,115870.0,115860.0,1.64140544]
[1758143963173,0.00512001,115870.0,115860.0,1.26248387]
[1758143963375,0.02900001,115870.0,115860.0,1.26045387]
[1758143964013,0.02900001,115870.0,115860.0,1.26260387]
[1758143964253,0.02900001,115870.0,115860.0,1.32946634]
[1758143965339,0.02900001,115870.0,115860.0,1.26260387]
[1758143966180,0.02900001,115870.0,115860.0,1.66260387]
[1758143966575,0.02597001,115870.0,115860.0,1.66260387]
[1758143968424,0.02900001,115870.0,115860.0,1.24748403]
[1758143968610,0.02900001,115870.0,115860.0,1.66045387]
[1758143970007,0.02900001,115870.0,115860.0,1.66260387]
[1758143971042,0.02900001,115870.0,115860.0,1.66045387]
[1758143971305,0.02900001,115870.0,115860.0,1.68504645]
[1758143971808,0.02597001,115870.0,115860.0,1.68719645]
[1758143972056,1e-08,115870.0,115860.0,1.69026645]
[1758143972299,1e-08,115870.0,115860.0,1.68719645]
[1758143972528,1e-08,115870.0,115860.0,2.24124786]
[1758143972747,1e-08,115870.0,115860.0,2.9942177]
[1758143972960,1e-08,115870.0,115860.0,2.58124786]
[1758143974077,1e-08,115870.0,115860.0,2.9942177]